[Event "Vienna IM February 2022"]
[Site "Vienna"]
[Date "2022.02.06"]
[Round "1.1"]
[White "Peyrer, Konstantin"]
[Black "Borrmann, Laurenz"]
[Result "0-1"]
[ECO "B10"]
[WhiteElo "2301"]
[BlackElo "2232"]
[Annotator "ChessBase"]
[PlyCount "96"]
[EventDate "2022.02.06"]
[EventType "tourn"]
[EventCountry "AUT"]
[SourceTitle "playchess.com"]
[Source "ChessBase"]
[SourceQuality "1"]
[TimeControl "40/5400+30:1800+30"]

1. e4 {[%emt 0:00:10]} c6 {[%emt 0:00:13]} 2. d3 {[%emt 0:00:12]} d5 {[%emt 0:00:08]} 3. Nd2 {[%emt 0:00:04]} e5 {[%emt 0:00:11]} 4. Ngf3 {[%emt 0:00:08]} Bd6 {[%emt 0:00:08]} 5. d4 {[%emt 0:00:10]} exd4 {[%emt 0:00:14]} 6. Bd3 {[%emt 0:00:58]} dxe4 {[%emt 0:10:05]} 7. Nxe4 {[%emt 0:00:16]} Bb4+ {[%emt 0:04:28]} 8. c3 {[%emt 0:00:13]} dxc3 {[%emt 0:02:36]} 9. O-O {[%emt 0:00:08]} Bf5 {[%emt 0:10:38]} 10. Bg5 {[%emt 0:20:57]} Be7 {[%emt 0:06:05]} 11. Re1 {[%emt 0:00:51]} Bxe4 {[%emt 0:10:32]} 12. Rxe4 {[%emt 0:00:08]} cxb2 {[%emt 0:01:21]} 13. Rb1 {[%emt 0:00:15]} Nd7 {[%emt 0:02:04]} 14. Rd4 {[%emt 0:00:43]} Bxg5 {[%emt 0:09:53]} 15. Bf5 {[%emt 0:00:15]} Bf6 {[%emt 0:01:13]} 16. Rxd7 {[%emt 0:01:19]} Qa5 {[%emt 0:04:33]} 17. Qd6 {[%emt 0:24:16]} Ne7 {[%emt 0:01:38]} 18. Be4 {[%emt 0:00:17]} Rd8 {[%emt 0:01:12]} 19. Rd1 {[%emt 0:00:37]} Nd5 {[%emt 0:08:39]} 20. Ne5 {[%emt 0:03:18]} Be7 {[%emt 0:04:12]} 21. Rxe7+ {[%emt 0:01:35]} Nxe7 {[%emt 0:00:20]} 22. Qxd8+ {[%emt 0:00:05]} Qxd8 {[%emt 0:00:04]} 23. Rxd8+ {[%emt 0:00:06]} Kxd8 {[%emt 0:00:03]} 24. Nxf7+ {[%emt 0:00:07]} Ke8 {[%emt 0:02:35]} 25. Nxh8 {[%emt 0:00:09]} g6 {[%emt 0:01:29]} 26. h4 {[%emt 0:00:35]} Kf8 {[%emt 0:01:18]} 27. Kf1 {[%emt 0:00:51]} Nd5 {[%emt 0:00:39]} 28. Nxg6+ {[%emt 0:01:21]} hxg6 {[%emt 0:00:16]} 29. Bxg6 {[%emt 0:00:04]} Nc3 {[%emt 0:01:36]} 30. h5 {[%emt 0:00:15]} Nxa2 {[%emt 0:01:56]} 31. g4 {[%emt 0:00:17]} Nc3 {[%emt 0:00:23]} 32. f4 {[%emt 0:00:23]} a5 {[%emt 0:00:52]} 33. h6 {[%emt 0:00:13]} a4 {[%emt 0:00:34]} 34. Kg2 {[%emt 0:01:28]} a3 {[%emt 0:01:00]} 35. h7 {[%emt 0:00:09]} Kg7 {[%emt 0:00:20]} 36. f5 {[%emt 0:00:06]} b1=Q {[%emt 0:02:38]} 37. f6+ {[%emt 0:00:08]} Kxg6 {[%emt 0:00:11]} 38. h8=Q {[%emt 0:00:07]} Qe4+ {[%emt 0:00:29]} 39. Kg3 {[%emt 0:01:05]} Qe5+ {[%emt 0:01:38]} 40. Kg2 {[%emt 0:00:00]} Qe2+ {[%emt 0:00:00]} 41. Kh1 {[%emt 0:01:48]} Qf1+ {[%emt 0:03:01]} 42. Kh2 {[%emt 0:00:09]} Qxf6 {[%emt 0:00:39]} 43. Qg8+ {[%emt 0:00:11]} Qg7 {[%emt 0:00:14]} 44. Qe6+ {[%emt 0:00:31]} Kh7 {[%emt 0:00:22]} 45. Qf5+ {[%emt 0:00:21]} Kh8 {[%emt 0:00:29]} 46. Kg2 {[%emt 0:00:34]} Qe7 {[%emt 0:00:41]} 47. Qa5 {[%emt 0:01:18]} Nd5 {[%emt 0:00:52]} 48. Kg3 {[%emt 0:00:25]} Qc7+ {[%emt 0:00:09]} 0-1

[Event "Vienna IM February 2022"]
[Site "Vienna"]
[Date "2022.02.10"]
[Round "6.3"]
[White "Peyrer, Konstantin"]
[Black "Kruckenhauser, Arthur"]
[Result "1-0"]
[ECO "E11"]
[WhiteElo "2301"]
[BlackElo "2278"]
[Annotator "ChessBase"]
[PlyCount "99"]
[EventDate "2022.02.06"]
[EventType "tourn"]
[EventCountry "AUT"]
[SourceTitle "playchess.com"]
[Source "ChessBase"]
[SourceQuality "1"]
[TimeControl "40/5400+30:1800+30"]

1. d4 {[%emt 0:00:02]} d5 {[%emt 0:03:00]} 2. Nf3 {[%emt 0:00:21]} e6 {[%emt 0:00:45]} 3. g3 {[%emt 0:00:08]} Nf6 {[%emt 0:00:14]} 4. Bg2 {[%emt 0:00:07]} Be7 {[%emt 0:00:03]} 5. c4 {[%emt 0:00:11]} c6 {[%emt 0:00:04]} 6. Qc2 {[%emt 0:00:21]} O-O {[%emt 0:00:13]} 7. O-O {[%emt 0:00:06]} b6 {[%emt 0:00:44]} 8. Bf4 {[%emt 0:01:09]} Nh5 {[%emt 0:04:39]} 9. Bd2 {[%emt 0:00:10]} Nf6 {[%emt 0:02:23]} 10. Ne5 {[%emt 0:02:06]} Nfd7 {[%emt 0:12:47]} 11. Nxd7 {[%emt 0:07:56]} Nxd7 {[%emt 0:00:54]} 12. Nc3 {[%emt 0:00:12]} Ba6 {[%emt 0:06:16]} 13. Qa4 {[%emt 0:00:48]} Bxc4 {[%emt 0:12:19]} 14. b3 {[%emt 0:00:12]} Bb5 {[%emt 0:02:16]} 15. Nxb5 {[%emt 0:00:12]} cxb5 {[%emt 0:00:02]} 16. Qxb5 {[%emt 0:00:10]} Ba3 {[%emt 0:05:24]} 17. Qd3 {[%emt 0:03:31]} Qe7 {[%emt 0:01:07]} 18. e4 {[%emt 0:00:30]} Nf6 {[%emt 0:01:38]} 19. e5 {[%emt 0:00:42]} Nd7 {[%emt 0:08:02]} 20. f4 {[%emt 0:03:19]} Rfc8 {[%emt 0:01:19]} 21. f5 {[%emt 0:02:19]} g6 {[%emt 0:02:35]} 22. fxe6 {[%emt 0:03:45]} fxe6 {[%emt 0:00:28]} 23. Bh6 {[%emt 0:00:19]} Rc6 {[%emt 0:02:34]} 24. Qf3 {[%emt 0:08:35]} Qe8 {[%emt 0:04:02]} 25. Qg4 {[%emt 0:03:35]} Bf8 {[%emt 0:02:13]} 26. Bg5 {[%emt 0:05:22]} Rac8 {[%emt 0:01:49]} 27. Rf2 {[%emt 0:04:00]} Bg7 {[%emt 0:05:55]} 28. Raf1 {[%emt 0:01:55]} Nf8 {[%emt 0:03:17]} 29. h4 {[%emt 0:02:22]} Rc2 {[%emt 0:02:05]} 30. Bh3 {[%emt 0:01:17]} Rxf2 {[%emt 0:01:30]} 31. Rxf2 {[%emt 0:00:07]} Rc7 {[%emt 0:03:56]} 32. Qf4 {[%emt 0:07:18]} Rf7 {[%emt 0:01:25]} 33. Qc1 {[%emt 0:00:07]} Rxf2 {[%emt 0:01:04]} 34. Kxf2 {[%emt 0:00:07]} Qf7+ {[%emt 0:00:55]} 35. Ke2 {[%emt 0:00:21]} Qb7 {[%emt 0:01:03]} 36. a4 {[%emt 0:02:39]} Qa6+ {[%emt 0:01:08]} 37. Ke3 {[%emt 0:02:11]} Qb7 {[%emt 0:01:26]} 38. Qc3 {[%emt 0:05:58]} Qd7 {[%emt 0:02:11]} 39. Ke2 {[%emt 0:04:54]} Kf7 {[%emt 0:02:16]} 40. Ke1 {[%emt 0:01:02]} Kg8 {[%emt 0:00:31]} 41. Bc1 {[%emt 0:31:23]} Qe7 {[%emt 0:14:46]} 42. b4 {[%emt 0:00:00]} Qf7 {[%emt 0:07:33]} 43. b5 {[%emt 0:00:00]} Kh8 {[%emt 0:00:35]} 44. Ba3 {[%emt 0:00:00]} g5 {[%emt 0:00:38]} 45. hxg5 {[%emt 0:00:00]} Qh5 {[%emt 0:00:40]} 46. Bxf8 {[%emt 0:00:00]} Qxh3 {[%emt 0:02:07]} 47. Bxg7+ {[%emt 0:00:00]} Kxg7 {[%emt 0:00:06]} 48. Qf3 {[%emt 0:00:00]} Kg6 {[%emt 0:01:38]} 49. Qf6+ {[%emt 0:00:00]} Kh5 {[%emt 0:00:15]} 50. Qh6+ {[%emt 0:00:00]} 1-0

[Event "Vienna IM February 2022"]
[Site "Vienna"]
[Date "2022.02.10"]
[Round "7.4"]
[White "Morgunov, Marc"]
[Black "Peyrer, Konstantin"]
[Result "1/2-1/2"]
[ECO "B15"]
[WhiteElo "2377"]
[BlackElo "2301"]
[Annotator "ChessBase"]
[PlyCount "168"]
[EventDate "2022.02.06"]
[EventType "tourn"]
[EventCountry "AUT"]
[SourceTitle "playchess.com"]
[Source "ChessBase"]
[SourceQuality "1"]
[TimeControl "40/5400+30:1800+30"]

1. e4 {[%emt 0:02:24]} c6 {[%emt 0:00:07]} 2. Nc3 {[%emt 0:00:32]} d5 {[%emt 0:00:06]} 3. d4 {[%emt 0:00:08]} dxe4 {[%emt 0:00:11]} 4. Nxe4 {[%emt 0:00:06]} Nf6 {[%emt 0:00:10]} 5. Nxf6+ {[%emt 0:00:05]} exf6 {[%emt 0:00:05]} 6. c3 {[%emt 0:00:07]} Bd6 {[%emt 0:00:06]} 7. Bd3 {[%emt 0:00:13]} O-O {[%emt 0:00:07]} 8. Qc2 {[%emt 0:00:06]} Re8+ {[%emt 0:00:04]} 9. Ne2 {[%emt 0:00:06]} h5 {[%emt 0:00:04]} 10. O-O {[%emt 0:00:56]} h4 {[%emt 0:00:10]} 11. h3 {[%emt 0:00:13]} Na6 {[%emt 0:00:25]} 12. Be3 {[%emt 0:05:59]} Nc7 {[%emt 0:02:19]} 13. c4 {[%emt 0:03:06]} Ne6 {[%emt 0:00:26]} 14. Rad1 {[%emt 0:08:24]} Bb8 {[%emt 0:03:19]} 15. Bc1 {[%emt 0:06:24]} Kh8 {[%emt 0:07:43]} 16. d5 {[%emt 0:15:27]} Qd6 {[%emt 0:09:02]} 17. f4 {[%emt 0:04:09]} cxd5 {[%emt 0:00:50]} 18. cxd5 {[%emt 0:00:54]} Qxd5 {[%emt 0:09:19]} 19. Bg6 {[%emt 0:04:28]} Qc6 {[%emt 0:09:21]} 20. Qxc6 {[%emt 0:01:30]} bxc6 {[%emt 0:01:11]} 21. Bxf7 {[%emt 0:00:13]} Rf8 {[%emt 0:00:07]} 22. Bh5 {[%emt 0:03:59]} f5 {[%emt 0:02:29]} 23. Bf3 {[%emt 0:06:17]} Ba6 {[%emt 0:00:40]} 24. Rfe1 {[%emt 0:08:11]} Bc7 {[%emt 0:01:23]} 25. Bxc6 {[%emt 0:04:04]} Rad8 {[%emt 0:00:13]} 26. Nc3 {[%emt 0:00:51]} Nxf4 {[%emt 0:01:45]} 27. Rxd8 {[%emt 0:05:25]} Rxd8 {[%emt 0:00:09]} 28. Re7 {[%emt 0:01:03]} Bb6+ {[%emt 0:02:56]} 29. Kh2 {[%emt 0:03:09]} Nd3 {[%emt 0:07:35]} 30. Bg5 {[%emt 0:01:30]} Rd6 {[%emt 0:00:50]} 31. Bd7 {[%emt 0:02:00]} g6 {[%emt 0:08:21]} 32. Bxh4 {[%emt 0:05:57]} Bd4 {[%emt 0:00:35]} 33. Be6 {[%emt 0:01:14]} Be5+ {[%emt 0:06:18]} 34. Kh1 {[%emt 0:01:16]} Nc5 {[%emt 0:05:40]} 35. Bf7 {[%emt 0:00:58]} Bxc3 {[%emt 0:00:08]} 36. bxc3 {[%emt 0:00:09]} Ne4 {[%emt 0:00:08]} 37. Re6 {[%emt 0:02:11]} Rxe6 {[%emt 0:00:13]} 38. Bxe6 {[%emt 0:00:03]} Kg7 {[%emt 0:00:08]} 39. Be7 {[%emt 0:01:09]} Nxc3 {[%emt 0:05:31]} 40. Bc5 {[%emt 0:00:11]} Kf6 {[%emt 0:00:56]} 41. Bb3 {[%emt 0:30:25]} Ke5 {[%emt 0:30:38]} 42. Bxa7 {[%emt 0:01:30]} Ne2 {[%emt 0:03:03]} 43. h4 {[%emt 0:00:00]} Kf4 {[%emt 0:00:00]} 44. Bf2 {[%emt 0:00:00]} Kg4 {[%emt 0:00:00]} 45. Bf7 {[%emt 0:00:00]} Bb7 {[%emt 0:00:00]} 46. Bc4 {[%emt 0:00:00]} Nc3 {[%emt 0:00:00]} 47. a3 {[%emt 0:00:00]} f4 {[%emt 0:00:00]} 48. Be1 {[%emt 0:00:27]} Na4 {[%emt 0:00:00]} 49. Kg1 {[%emt 0:03:46]} Nc5 {[%emt 0:00:00]} 50. Bf2 {[%emt 0:00:22]} Ne4 {[%emt 0:00:00]} 51. Be2+ {[%emt 0:00:05]} Kf5 {[%emt 0:00:00]} 52. a4 {[%emt 0:00:26]} g5 {[%emt 0:00:00]} 53. h5 {[%emt 0:01:54]} g4 {[%emt 0:00:00]} 54. h6 {[%emt 0:00:19]} Kg6 {[%emt 0:00:10]} 55. Bxg4 {[%emt 0:00:05]} Kxh6 {[%emt 0:00:09]} 56. a5 {[%emt 0:01:03]} Ba6 {[%emt 0:00:08]} 57. Bh4 {[%emt 0:00:06]} Kg6 {[%emt 0:00:18]} 58. Bd8 {[%emt 0:00:17]} Kh6 {[%emt 0:01:55]} 59. Bf3 {[%emt 0:01:30]} Nc5 {[%emt 0:01:56]} 60. Kh2 {[%emt 0:01:19]} Kg6 {[%emt 0:01:33]} 61. Bg4 {[%emt 0:01:23]} Nd3 {[%emt 0:00:18]} 62. Bd7 {[%emt 0:00:48]} Ne5 {[%emt 0:00:18]} 63. Be6 {[%emt 0:00:35]} f3 {[%emt 0:00:14]} 64. gxf3 {[%emt 0:00:14]} Nxf3+ {[%emt 0:00:18]} 65. Kg3 {[%emt 0:00:05]} Ne5 {[%emt 0:00:19]} 66. Bd5 {[%emt 0:00:30]} Nc4 {[%emt 0:00:07]} 67. Kf4 {[%emt 0:00:12]} Nxa5 {[%emt 0:00:09]} 68. Bxa5 {[%emt 0:00:04]} Bd3 {[%emt 0:00:11]} 69. Bc3 {[%emt 0:00:07]} Bc2 {[%emt 0:00:26]} 70. Bc6 {[%emt 0:00:06]} Bb1 {[%emt 0:00:31]} 71. Be8+ {[%emt 0:00:07]} Kh6 {[%emt 0:00:09]} 72. Bf6 {[%emt 0:00:20]} Kh7 {[%emt 0:00:08]} 73. Kg5 {[%emt 0:00:41]} Bc2 {[%emt 0:00:11]} 74. Be7 {[%emt 0:00:05]} Bb1 {[%emt 0:00:07]} 75. Bf8 {[%emt 0:00:09]} Bc2 {[%emt 0:00:07]} 76. Kf6 {[%emt 0:00:13]} Bb1 {[%emt 0:00:05]} 77. Bg7 {[%emt 0:00:04]} Bc2 {[%emt 0:00:09]} 78. Bh5 {[%emt 0:00:06]} Bb1 {[%emt 0:00:08]} 79. Kf7 {[%emt 0:00:14]} Ba2+ {[%emt 0:00:13]} 80. Kf8 {[%emt 0:00:14]} Bb3 {[%emt 0:00:25]} 81. Be8 {[%emt 0:00:11]} Bc2 {[%emt 0:00:13]} 82. Bf7 {[%emt 0:00:06]} Bb1 {[%emt 0:00:10]} 83. Bh5 {[%emt 0:00:25]} Ba2 {[%emt 0:00:08]} 84. Be2 {[%emt 0:00:04]} Kg6 {[%emt 0:00:11]} 1/2-1/2

[Event "Vienna IM February 2022"]
[Site "Vienna"]
[Date "2022.02.11"]
[Round "8.4"]
[White "Cu Hor, Winston Darwin"]
[Black "Kruckenhauser, Arthur"]
[Result "1-0"]
[ECO "A14"]
[WhiteElo "2337"]
[BlackElo "2278"]
[Annotator "ChessBase"]
[PlyCount "61"]
[EventDate "2022.02.06"]
[EventType "tourn"]
[EventCountry "AUT"]
[SourceTitle "playchess.com"]
[Source "ChessBase"]
[SourceQuality "1"]
[TimeControl "40/5400+30:1800+30"]

1. Nf3 {[%emt 0:00:04]} d5 {[%emt 0:02:21]} 2. c4 {[%emt 0:00:13]} e6 {[%emt 0:00:24]} 3. b3 {[%emt 0:00:27]} Nf6 {[%emt 0:00:18]} 4. g3 {[%emt 0:02:20]} Be7 {[%emt 0:11:32]} 5. Bg2 {[%emt 0:01:00]} O-O {[%emt 0:00:29]} 6. O-O {[%emt 0:00:05]} dxc4 {[%emt 0:00:44]} 7. bxc4 {[%emt 0:00:08]} c5 {[%emt 0:00:07]} 8. Nc3 {[%emt 0:02:28]} Nc6 {[%emt 0:02:09]} 9. d3 {[%emt 0:00:05]} a6 {[%emt 0:02:40]} 10. Rb1 {[%emt 0:00:42]} Rb8 {[%emt 0:01:51]} 11. Bf4 {[%emt 0:10:04]} Bd6 {[%emt 0:00:11]} 12. Qc1 {[%emt 0:00:13]} Qc7 {[%emt 0:06:25]} 13. Bg5 {[%emt 0:07:56]} Nd7 {[%emt 0:07:08]} 14. Ne4 {[%emt 0:01:25]} b5 {[%emt 0:00:36]} 15. cxb5 {[%emt 0:02:10]} axb5 {[%emt 0:00:15]} 16. Be3 {[%emt 0:05:26]} Ne7 {[%emt 0:10:56]} 17. d4 {[%emt 0:05:31]} cxd4 {[%emt 0:07:22]} 18. Nxd6 {[%emt 0:05:47]} Qxd6 {[%emt 0:00:06]} 19. Bxd4 {[%emt 0:02:58]} e5 {[%emt 0:07:45]} 20. Bc3 {[%emt 0:02:42]} f6 {[%emt 0:10:47]} 21. Rd1 {[%emt 0:02:57]} Qe6 {[%emt 0:00:24]} 22. Bb4 {[%emt 0:00:14]} Re8 {[%emt 0:01:35]} 23. Qa3 {[%emt 0:00:47]} Nb6 {[%emt 0:06:03]} 24. Bxe7 {[%emt 0:07:05]} Rxe7 {[%emt 0:07:41]} 25. Rxb5 {[%emt 0:01:59]} Rd7 {[%emt 0:04:36]} 26. Rbb1 {[%emt 0:03:10]} Ra8 {[%emt 0:02:04]} 27. Qc5 {[%emt 0:01:16]} Na4 {[%emt 0:02:23]} 28. Qc2 {[%emt 0:02:20]} e4 {[%emt 0:04:41]} 29. Nd4 {[%emt 0:00:45]} Qe5 {[%emt 0:00:25]} 30. Bxe4 {[%emt 0:01:12]} Rc7 {[%emt 0:00:56]} 31. Qb3+ {[%emt 0:00:39]} 1-0